[Event "Titled Tuesday Blitz July 4 Late 2023"]
[White "Guerra Tulcan, Lenin"]
[Black "Oparin, Grigoriy"]
[WhiteFideId "3601382"]
[BlackFideId "24125890"]
[WhiteElo "2656"]
[BlackElo "2952"]
[Result "0-1"]
[Round "3"]
[TimeControl "180+2"]
[Date "2023.07.04"]
[WhiteClock "0:01:41"]
[BlackClock "0:02:01"]
[Board "22"]

1. e4 {[%clk 0:03:00]}  c5 {[%clk 0:02:59]} 2. Nf3 {[%clk 0:03:00]}  Nc6 {[%clk 0:03:00]} 3. d4 {[%clk 0:02:59]}  cxd4 {[%clk 0:03:00]} 4. Nxd4 {[%clk 0:03:00]}  e5 {[%clk 0:03:01]} 5. Nb5 {[%clk 0:02:57]}  d6 {[%clk 0:03:01]} 6. N1c3 {[%clk 0:02:56]}  a6 {[%clk 0:03:00]} 7. Na3 {[%clk 0:02:56]}  Be6 {[%clk 0:03:00]} 8. Nd5 {[%clk 0:02:54]}  Nf6 {[%clk 0:02:46]} 9. Bg5 {[%clk 0:02:53]}  Bxd5 {[%clk 0:02:40]} 10. Bxf6 {[%clk 0:02:30]}  Qa5+ {[%clk 0:02:40]} 11. c3 {[%clk 0:02:27]}  Bxe4 {[%clk 0:02:31]} 12. Nc4 {[%clk 0:02:27]}  Qc7 {[%clk 0:02:31]} 13. Bg5 {[%clk 0:02:22]}  d5 {[%clk 0:02:26]} 14. Ne3 {[%clk 0:02:18]}  f6 {[%clk 0:02:27]} 15. Bh4 {[%clk 0:02:18]}  O-O-O {[%clk 0:02:26]} 16. f3 {[%clk 0:02:08]}  Bg6 {[%clk 0:02:05]} 17. Nxd5 {[%clk 0:01:41]}  Qa5 {[%clk 0:02:04]} 18. Bc4 {[%clk 0:01:41]}  Bf7 {[%clk 0:02:05]} 19. Nb6+ {[%clk 0:01:40]}  Qxb6 {[%clk 0:02:03]} 20. Bxf7 {[%clk 0:01:41]}  Rxd1+ {[%clk 0:02:01]} 21. Rxd1 {[%clk 0:01:41]} 0-1


[Site "https://www.chess.com"]

[Event "Titled Tuesday Blitz July 4 Late 2023"]
[White "MKlose11"]
[Black "Chigaev, Maksim"]
[BlackFideId "4108116"]
[WhiteElo "2653"]
[BlackElo "2945"]
[Result "0-1"]
[Round "3"]
[TimeControl "180+2"]
[Date "2023.07.04"]
[WhiteClock "0:00:02"]
[BlackClock "0:00:16"]
[Board "23"]

1. e4 {[%clk 0:03:00]}  e6 {[%clk 0:03:00]} 2. d4 {[%clk 0:02:58]}  d5 {[%clk 0:03:01]} 3. Nc3 {[%clk 0:02:53]}  Nf6 {[%clk 0:03:00]} 4. Bg5 {[%clk 0:02:50]}  Bb4 {[%clk 0:02:59]} 5. Ne2 {[%clk 0:02:51]}  h6 {[%clk 0:02:48]} 6. Bxf6 {[%clk 0:02:42]}  Qxf6 {[%clk 0:02:49]} 7. e5 {[%clk 0:02:42]}  Qe7 {[%clk 0:02:47]} 8. a3 {[%clk 0:02:42]}  Ba5 {[%clk 0:02:47]} 9. b4 {[%clk 0:02:38]}  Bb6 {[%clk 0:02:48]} 10. Na4 {[%clk 0:02:32]}  Bd7 {[%clk 0:02:48]} 11. Nc5 {[%clk 0:02:28]}  Bxc5 {[%clk 0:02:45]} 12. bxc5 {[%clk 0:02:28]}  b6 {[%clk 0:02:46]} 13. cxb6 {[%clk 0:02:25]}  axb6 {[%clk 0:02:47]} 14. Qc1 {[%clk 0:02:13]}  Nc6 {[%clk 0:02:43]} 15. c3 {[%clk 0:02:08]}  Na5 {[%clk 0:02:43]} 16. Qd1 {[%clk 0:01:46]}  Nc4 {[%clk 0:02:29]} 17. a4 {[%clk 0:01:39]}  O-O {[%clk 0:02:19]} 18. Nf4 {[%clk 0:01:26]}  Nb2 {[%clk 0:02:17]} 19. Qc2 {[%clk 0:01:26]}  Nxa4 {[%clk 0:02:16]} 20. Bd3 {[%clk 0:01:26]}  Nc5 {[%clk 0:02:08]} 21. O-O {[%clk 0:01:21]}  Nxd3 {[%clk 0:02:07]} 22. Qxd3 {[%clk 0:01:20]}  c5 {[%clk 0:01:58]} 23. Qg3 {[%clk 0:01:11]}  Qg5 {[%clk 0:01:52]} 24. Rfb1 {[%clk 0:01:10]}  Rxa1 {[%clk 0:01:43]} 25. Rxa1 {[%clk 0:01:09]}  Rc8 {[%clk 0:01:32]} 26. Rb1 {[%clk 0:00:56]}  cxd4 {[%clk 0:01:13]} 27. cxd4 {[%clk 0:00:57]}  b5 {[%clk 0:01:13]} 28. Qxg5 {[%clk 0:00:53]}  hxg5 {[%clk 0:01:14]} 29. Nd3 {[%clk 0:00:54]}  Rc4 {[%clk 0:01:12]} 30. Rb4 {[%clk 0:00:49]}  Rc3 {[%clk 0:01:05]} 31. Ne1 {[%clk 0:00:49]}  f6 {[%clk 0:00:58]} 32. Kf1 {[%clk 0:00:35]}  Kf7 {[%clk 0:00:58]} 33. Ke2 {[%clk 0:00:34]}  Ke7 {[%clk 0:00:59]} 34. Kd2 {[%clk 0:00:29]}  Rc4 {[%clk 0:00:58]} 35. Nd3 {[%clk 0:00:26]}  Bc6 {[%clk 0:00:58]} 36. g3 {[%clk 0:00:22]}  g4 {[%clk 0:00:51]} 37. Ke3 {[%clk 0:00:14]}  Be8 {[%clk 0:00:47]} 38. Rb2 {[%clk 0:00:12]}  Rc3 {[%clk 0:00:28]} 39. Kd2 {[%clk 0:00:12]}  Rc7 {[%clk 0:00:28]} 40. Rc2 {[%clk 0:00:10]}  Rc4 {[%clk 0:00:27]} 41. Ra2 {[%clk 0:00:10]}  Rxd4 {[%clk 0:00:27]} 42. Ke3 {[%clk 0:00:11]}  fxe5 {[%clk 0:00:24]} 43. Ra7+ {[%clk 0:00:07]}  Kf6 {[%clk 0:00:24]} 44. Nc5 {[%clk 0:00:07]}  Rc4 {[%clk 0:00:20]} 45. Na6 {[%clk 0:00:06]}  Ra4 {[%clk 0:00:19]} 46. Ra8 {[%clk 0:00:05]}  Bc6 {[%clk 0:00:16]} 47. Rf8+ {[%clk 0:00:02]}  Ke7 {[%clk 0:00:16]} 0-1


[Site "https://www.chess.com"]

[Event "Titled Tuesday Blitz July 4 Late 2023"]
[White "Hilary46"]
[Black "Keymer, Vincent"]
[BlackFideId "12940690"]
[WhiteElo "2649"]
[BlackElo "2942"]
[Result "0-1"]
[Round "3"]
[TimeControl "180+2"]
[Date "2023.07.04"]
[WhiteClock "0:00:00"]
[BlackClock "0:00:07"]
[Board "24"]

1. e4 {[%clk 0:03:00]}  c6 {[%clk 0:02:55]} 2. d4 {[%clk 0:03:00]}  d5 {[%clk 0:02:56]} 3. e5 {[%clk 0:03:00]}  Bf5 {[%clk 0:02:54]} 4. c4 {[%clk 0:03:01]}  e6 {[%clk 0:02:54]} 5. Nc3 {[%clk 0:03:01]}  Ne7 {[%clk 0:02:51]} 6. Nf3 {[%clk 0:03:02]}  Bg4 {[%clk 0:02:49]} 7. Be3 {[%clk 0:03:01]}  Nf5 {[%clk 0:02:41]} 8. c5 {[%clk 0:02:52]}  f6 {[%clk 0:02:36]} 9. exf6 {[%clk 0:02:51]}  Qxf6 {[%clk 0:02:29]} 10. Be2 {[%clk 0:02:50]}  Nd7 {[%clk 0:02:25]} 11. O-O {[%clk 0:02:47]}  Be7 {[%clk 0:02:17]} 12. Qd2 {[%clk 0:02:47]}  Bxf3 {[%clk 0:02:12]} 13. Bxf3 {[%clk 0:02:46]}  O-O {[%clk 0:02:12]} 14. Bg4 {[%clk 0:02:39]}  Qg6 {[%clk 0:02:11]} 15. h3 {[%clk 0:02:30]}  e5 {[%clk 0:02:05]} 16. Ne2 {[%clk 0:02:13]}  Rae8 {[%clk 0:01:50]} 17. Rae1 {[%clk 0:02:11]}  h5 {[%clk 0:01:42]} 18. Bxf5 {[%clk 0:02:10]}  Rxf5 {[%clk 0:01:39]} 19. dxe5 {[%clk 0:02:09]}  Rxe5 {[%clk 0:01:35]} 20. b4 {[%clk 0:02:05]}  Bf6 {[%clk 0:01:25]} 21. Nf4 {[%clk 0:01:58]}  Qf5 {[%clk 0:01:22]} 22. a3 {[%clk 0:01:53]}  Kh7 {[%clk 0:01:11]} 23. Ne2 {[%clk 0:01:33]}  R5e7 {[%clk 0:01:02]} 24. Nd4 {[%clk 0:01:31]}  Qg6 {[%clk 0:01:00]} 25. Nf3 {[%clk 0:01:31]}  Ne5 {[%clk 0:00:58]} 26. Nxe5 {[%clk 0:01:31]}  Rxe5 {[%clk 0:00:58]} 27. Bf4 {[%clk 0:01:26]}  Re4 {[%clk 0:00:58]} 28. Rxe4 {[%clk 0:01:12]}  Qxe4 {[%clk 0:00:58]} 29. Bd6 {[%clk 0:01:07]}  Qc4 {[%clk 0:00:34]} 30. Rd1 {[%clk 0:01:05]}  Qc3 {[%clk 0:00:31]} 31. Qf4 {[%clk 0:00:59]}  Qc2 {[%clk 0:00:28]} 32. Rf1 {[%clk 0:00:55]}  Qd3 {[%clk 0:00:24]} 33. a4 {[%clk 0:00:53]}  a6 {[%clk 0:00:22]} 34. Qf3 {[%clk 0:00:31]}  Qxf3 {[%clk 0:00:18]} 35. gxf3 {[%clk 0:00:32]}  Bc3 {[%clk 0:00:19]} 36. Rb1 {[%clk 0:00:32]}  Re1+ {[%clk 0:00:19]} 37. Rxe1 {[%clk 0:00:32]}  Bxe1 {[%clk 0:00:20]} 38. b5 {[%clk 0:00:33]}  axb5 {[%clk 0:00:20]} 39. axb5 {[%clk 0:00:33]}  cxb5 {[%clk 0:00:21]} 40. Kf1 {[%clk 0:00:34]}  Bc3 {[%clk 0:00:17]} 41. Ke2 {[%clk 0:00:34]}  Kg6 {[%clk 0:00:18]} 42. Kd3 {[%clk 0:00:35]}  b4 {[%clk 0:00:18]} 43. Kc2 {[%clk 0:00:21]}  Kg5 {[%clk 0:00:17]} 44. Bg3 {[%clk 0:00:19]}  Kf5 {[%clk 0:00:17]} 45. Bd6 {[%clk 0:00:17]}  g6 {[%clk 0:00:17]} 46. Kb3 {[%clk 0:00:17]}  Ke6 {[%clk 0:00:15]} 47. Bg3 {[%clk 0:00:16]}  Be1 {[%clk 0:00:13]} 48. Ka4 {[%clk 0:00:15]}  Kd7 {[%clk 0:00:13]} 49. Kb5 {[%clk 0:00:07]}  b3 {[%clk 0:00:13]} 50. Be5 {[%clk 0:00:07]}  Bxf2 {[%clk 0:00:12]} 51. Bb2 {[%clk 0:00:08]}  d4 {[%clk 0:00:09]} 52. Kc4 {[%clk 0:00:07]}  Kc6 {[%clk 0:00:10]} 53. Ba3 {[%clk 0:00:07]}  d3 {[%clk 0:00:06]} 54. Kxd3 {[%clk 0:00:08]}  Bxc5 {[%clk 0:00:06]} 55. Bb2 {[%clk 0:00:08]}  Kd5 {[%clk 0:00:07]} 56. Bf6 {[%clk 0:00:06]}  Bd6 {[%clk 0:00:07]} 57. Bc3 {[%clk 0:00:05]}  Be5 {[%clk 0:00:07]} 58. Bd2 {[%clk 0:00:05]}  b5 {[%clk 0:00:06]} 59. Be3 {[%clk 0:00:06]}  Ke6 {[%clk 0:00:06]} 60. f4 {[%clk 0:00:05]}  Bf6 {[%clk 0:00:06]} 61. Bd2 {[%clk 0:00:03]}  Kf5 {[%clk 0:00:07]} 62. Be3 {[%clk 0:00:04]}  Be7 {[%clk 0:00:04]} 63. Bd2 {[%clk 0:00:04]}  Bd6 {[%clk 0:00:05]} 64. Kc3 {[%clk 0:00:04]}  Bxf4 {[%clk 0:00:06]} 65. Be1 {[%clk 0:00:04]}  Bd6 {[%clk 0:00:05]} 66. Kxb3 {[%clk 0:00:04]}  Kf4 {[%clk 0:00:05]} 67. Kc3 {[%clk 0:00:03]}  Kf3 {[%clk 0:00:05]} 68. Kd3 {[%clk 0:00:03]}  g5 {[%clk 0:00:05]} 69. Bd2 {[%clk 0:00:02]}  g4 {[%clk 0:00:05]} 70. hxg4 {[%clk 0:00:03]}  hxg4 {[%clk 0:00:06]} 71. Kd4 {[%clk 0:00:02]}  g3 {[%clk 0:00:06]} 72. Kd5 {[%clk 0:00:02]}  g2 {[%clk 0:00:07]} 73. Kxd6 {[%clk 0:00:02]}  g1=Q {[%clk 0:00:07]} 74. Kc6 {[%clk 0:00:00]}  Qf1 {[%clk 0:00:07]} 0-1


[Site "https://www.chess.com"]

[Event "Titled Tuesday Blitz July 4 Late 2023"]
[White "Popilski, Gil"]
[Black "Eljanov, Pavel"]
[WhiteFideId "2809060"]
[BlackFideId "14102951"]
[WhiteElo "2640"]
[BlackElo "2933"]
[Result "1-0"]
[Round "3"]
[TimeControl "180+2"]
[Date "2023.07.04"]
[WhiteClock "0:00:13"]
[BlackClock "0:00:00"]
[Board "25"]

1. e4 {[%clk 0:03:00]}  c6 {[%clk 0:02:54]} 2. Nf3 {[%clk 0:02:57]}  d5 {[%clk 0:02:54]} 3. Nc3 {[%clk 0:02:56]}  dxe4 {[%clk 0:02:55]} 4. Nxe4 {[%clk 0:02:56]}  Nf6 {[%clk 0:02:55]} 5. Qe2 {[%clk 0:02:56]}  Nxe4 {[%clk 0:02:55]} 6. Qxe4 {[%clk 0:02:57]}  Be6 {[%clk 0:02:55]} 7. c4 {[%clk 0:02:55]}  Nd7 {[%clk 0:02:54]} 8. h3 {[%clk 0:02:52]}  Nf6 {[%clk 0:02:51]} 9. Qe3 {[%clk 0:02:52]}  Bf5 {[%clk 0:02:50]} 10. d4 {[%clk 0:02:51]}  e6 {[%clk 0:02:49]} 11. Be2 {[%clk 0:02:51]}  Bb4+ {[%clk 0:02:46]} 12. Bd2 {[%clk 0:02:51]}  Bxd2+ {[%clk 0:02:41]} 13. Qxd2 {[%clk 0:02:50]}  Ne4 {[%clk 0:02:41]} 14. Qb4 {[%clk 0:02:48]}  Qb6 {[%clk 0:02:32]} 15. Qxb6 {[%clk 0:02:28]}  axb6 {[%clk 0:02:32]} 16. a3 {[%clk 0:02:26]}  h6 {[%clk 0:02:28]} 17. O-O {[%clk 0:02:21]}  g5 {[%clk 0:02:18]} 18. Rfe1 {[%clk 0:02:19]}  O-O-O {[%clk 0:01:53]} 19. Rad1 {[%clk 0:02:17]}  Nd6 {[%clk 0:01:33]} 20. Bf1 {[%clk 0:02:01]}  c5 {[%clk 0:01:18]} 21. b4 {[%clk 0:01:56]}  cxd4 {[%clk 0:01:16]} 22. Nxd4 {[%clk 0:01:22]}  Bg6 {[%clk 0:01:14]} 23. c5 {[%clk 0:01:19]}  bxc5 {[%clk 0:01:12]} 24. bxc5 {[%clk 0:01:19]}  Nf5 {[%clk 0:01:07]} 25. Nb5 {[%clk 0:01:11]}  h5 {[%clk 0:01:08]} 26. Bd3 {[%clk 0:00:49]}  Kb8 {[%clk 0:00:33]} 27. Bxf5 {[%clk 0:00:44]}  Bxf5 {[%clk 0:00:24]} 28. Nd6 {[%clk 0:00:42]}  Bg6 {[%clk 0:00:24]} 29. Rd4 {[%clk 0:00:34]}  Kc7 {[%clk 0:00:22]} 30. Rb4 {[%clk 0:00:30]}  Rb8 {[%clk 0:00:16]} 31. Rb6 {[%clk 0:00:27]}  g4 {[%clk 0:00:14]} 32. Re3 {[%clk 0:00:24]}  gxh3 {[%clk 0:00:12]} 33. Rxh3 {[%clk 0:00:24]}  Ra8 {[%clk 0:00:12]} 34. Rxb7+ {[%clk 0:00:17]}  Kc6 {[%clk 0:00:12]} 35. Rc3 {[%clk 0:00:18]}  Ra6 {[%clk 0:00:09]} 36. Re7 {[%clk 0:00:15]}  Rha8 {[%clk 0:00:05]} 37. Nxf7 {[%clk 0:00:14]}  Bxf7 {[%clk 0:00:04]} 38. Rxf7 {[%clk 0:00:15]}  Rxa3 {[%clk 0:00:05]} 39. Rff3 {[%clk 0:00:13]}  Rxc3 {[%clk 0:00:04]} 40. Rxc3 {[%clk 0:00:14]}  Rf8 {[%clk 0:00:02]} 41. f3 {[%clk 0:00:14]}  Rg8 {[%clk 0:00:03]} 42. Kh2 {[%clk 0:00:14]}  Rg5 {[%clk 0:00:01]} 43. Kh3 {[%clk 0:00:14]}  e5 {[%clk 0:00:01]} 44. g3 {[%clk 0:00:13]}  Rf5 {[%clk 0:00:00]} 45. Kh4 {[%clk 0:00:13]} 1-0


[Site "https://www.chess.com"]

[Event "Titled Tuesday Blitz July 4 Late 2023"]
[White "Ibrahimli, Murad"]
[Black "Ganiev, Roman"]
[WhiteFideId "13410229"]
[BlackFideId "4131452"]
[WhiteElo "2918"]
[BlackElo "2639"]
[Result "1-0"]
[Round "3"]
[TimeControl "180+2"]
[Date "2023.07.04"]
[WhiteClock "0:01:45"]
[BlackClock "0:00:37"]
[Board "26"]

1. c4 {[%clk 0:02:56]}  e5 {[%clk 0:02:59]} 2. Nc3 {[%clk 0:02:56]}  Nc6 {[%clk 0:03:00]} 3. g3 {[%clk 0:02:55]}  Nf6 {[%clk 0:02:59]} 4. Bg2 {[%clk 0:02:55]}  Bb4 {[%clk 0:02:59]} 5. Nd5 {[%clk 0:02:55]}  Be7 {[%clk 0:02:57]} 6. e3 {[%clk 0:02:55]}  O-O {[%clk 0:02:56]} 7. Ne2 {[%clk 0:02:54]}  d6 {[%clk 0:02:56]} 8. O-O {[%clk 0:02:52]}  Nxd5 {[%clk 0:02:56]} 9. cxd5 {[%clk 0:02:52]}  Nb8 {[%clk 0:02:55]} 10. d4 {[%clk 0:02:46]}  f5 {[%clk 0:02:54]} 11. dxe5 {[%clk 0:02:40]}  dxe5 {[%clk 0:02:54]} 12. e4 {[%clk 0:02:41]}  Bd6 {[%clk 0:02:52]} 13. exf5 {[%clk 0:02:40]}  Bxf5 {[%clk 0:02:53]} 14. Nc3 {[%clk 0:02:38]}  a6 {[%clk 0:02:53]} 15. Be3 {[%clk 0:02:35]}  Nd7 {[%clk 0:02:51]} 16. Ne4 {[%clk 0:02:35]}  Nf6 {[%clk 0:02:44]} 17. Nc5 {[%clk 0:02:35]}  Rb8 {[%clk 0:02:32]} 18. Ne6 {[%clk 0:02:33]}  Bxe6 {[%clk 0:02:30]} 19. dxe6 {[%clk 0:02:34]}  Qe7 {[%clk 0:02:31]} 20. Qb3 {[%clk 0:02:34]}  Rfe8 {[%clk 0:02:29]} 21. Bh3 {[%clk 0:02:34]}  Bc5 {[%clk 0:02:28]} 22. Rfe1 {[%clk 0:02:30]}  Bxe3 {[%clk 0:02:26]} 23. Rxe3 {[%clk 0:02:31]}  e4 {[%clk 0:02:26]} 24. Rd1 {[%clk 0:02:28]}  c6 {[%clk 0:02:25]} 25. Rd7 {[%clk 0:02:25]}  Qc5 {[%clk 0:02:19]} 26. Rxb7 {[%clk 0:02:24]}  Rxb7 {[%clk 0:02:14]} 27. Qxb7 {[%clk 0:02:24]}  a5 {[%clk 0:02:15]} 28. Qf7+ {[%clk 0:02:24]}  Kh8 {[%clk 0:02:12]} 29. Rc3 {[%clk 0:02:20]}  Qd6 {[%clk 0:02:08]} 30. Qb7 {[%clk 0:02:05]}  c5 {[%clk 0:02:05]} 31. Qb5 {[%clk 0:02:03]}  h5 {[%clk 0:01:32]} 32. Qxc5 {[%clk 0:02:00]}  Qd1+ {[%clk 0:01:31]} 33. Kg2 {[%clk 0:02:00]}  h4 {[%clk 0:01:32]} 34. gxh4 {[%clk 0:01:53]}  Nh5 {[%clk 0:01:20]} 35. Qg5 {[%clk 0:01:48]}  Rf8 {[%clk 0:00:51]} 36. e7 {[%clk 0:01:45]}  Re8 {[%clk 0:00:37]} 37. Bg4 {[%clk 0:01:45]} 1-0


[Site "https://www.chess.com"]

[Event "Titled Tuesday Blitz July 4 Late 2023"]
[White "Dardha, Daniel"]
[Black "Janaszak, Dawid"]
[WhiteFideId "240990"]
[BlackFideId "1119206"]
[WhiteElo "2887"]
[BlackElo "2609"]
[Result "1-0"]
[Round "3"]
[TimeControl "180+2"]
[Date "2023.07.04"]
[WhiteClock "0:01:26"]
[BlackClock "0:00:06"]
[Board "30"]

1. c4 {[%clk 0:03:00]}  e6 {[%clk 0:02:59]} 2. d4 {[%clk 0:03:00]}  d5 {[%clk 0:03:00]} 3. Nf3 {[%clk 0:03:00]}  c5 {[%clk 0:03:00]} 4. cxd5 {[%clk 0:03:00]}  exd5 {[%clk 0:03:01]} 5. g3 {[%clk 0:03:01]}  Nc6 {[%clk 0:03:01]} 6. Bg2 {[%clk 0:03:01]}  Nf6 {[%clk 0:03:00]} 7. Nc3 {[%clk 0:03:01]}  cxd4 {[%clk 0:02:57]} 8. Nxd4 {[%clk 0:03:00]}  Bc5 {[%clk 0:02:58]} 9. Nxc6 {[%clk 0:02:55]}  bxc6 {[%clk 0:02:58]} 10. O-O {[%clk 0:02:56]}  O-O {[%clk 0:02:57]} 11. Na4 {[%clk 0:02:56]}  Bd6 {[%clk 0:02:51]} 12. Be3 {[%clk 0:02:53]}  Re8 {[%clk 0:02:49]} 13. Rc1 {[%clk 0:02:48]}  Rxe3 {[%clk 0:02:48]} 14. fxe3 {[%clk 0:02:49]}  Ng4 {[%clk 0:02:37]} 15. Qd4 {[%clk 0:02:35]}  Qe8 {[%clk 0:02:05]} 16. Rxc6 {[%clk 0:02:21]}  Be5 {[%clk 0:01:35]} 17. Qc5 {[%clk 0:01:52]}  Bd7 {[%clk 0:01:29]} 18. Bxd5 {[%clk 0:01:51]}  Bf6 {[%clk 0:01:08]} 19. Rcxf6 {[%clk 0:01:46]}  Nxf6 {[%clk 0:01:05]} 20. Bxa8 {[%clk 0:01:46]}  Qxa8 {[%clk 0:01:01]} 21. Nc3 {[%clk 0:01:45]}  Bh3 {[%clk 0:01:00]} 22. Rf3 {[%clk 0:01:45]}  h6 {[%clk 0:00:45]} 23. Qd4 {[%clk 0:01:35]}  Qb7 {[%clk 0:00:06]} 24. g4 {[%clk 0:01:26]} 1-0


[Site "https://www.chess.com"]

[Event "Titled Tuesday Blitz July 4 Late 2023"]
[White "Domingo Nunez, Alejandro"]
[Black "Henriquez Villagra, Cristobal"]
[WhiteFideId "22245561"]
[BlackFideId "3409350"]
[WhiteElo "2607"]
[BlackElo "2853"]
[Result "0-1"]
[Round "3"]
[TimeControl "180+2"]
[Date "2023.07.04"]
[WhiteClock "0:00:02"]
[BlackClock "0:00:12"]
[Board "31"]

1. Nf3 {[%clk 0:03:00]}  d6 {[%clk 0:03:00]} 2. d4 {[%clk 0:03:00]}  g6 {[%clk 0:02:59]} 3. b3 {[%clk 0:03:00]}  Bg7 {[%clk 0:02:59]} 4. Bb2 {[%clk 0:03:01]}  f5 {[%clk 0:03:00]} 5. g3 {[%clk 0:03:01]}  Nf6 {[%clk 0:03:00]} 6. Bg2 {[%clk 0:03:02]}  O-O {[%clk 0:03:00]} 7. O-O {[%clk 0:03:03]}  c6 {[%clk 0:02:52]} 8. c4 {[%clk 0:03:03]}  Kh8 {[%clk 0:02:48]} 9. Qc2 {[%clk 0:03:03]}  Nbd7 {[%clk 0:02:39]} 10. Nc3 {[%clk 0:02:58]}  e5 {[%clk 0:02:33]} 11. dxe5 {[%clk 0:02:58]}  dxe5 {[%clk 0:02:34]} 12. e4 {[%clk 0:02:58]}  f4 {[%clk 0:02:21]} 13. Ba3 {[%clk 0:02:25]}  c5 {[%clk 0:02:10]} 14. Rad1 {[%clk 0:02:25]}  Qe7 {[%clk 0:02:08]} 15. Rfe1 {[%clk 0:02:07]}  b6 {[%clk 0:02:03]} 16. gxf4 {[%clk 0:02:05]}  Bb7 {[%clk 0:02:02]} 17. f5 {[%clk 0:01:20]}  Rad8 {[%clk 0:01:38]} 18. Bc1 {[%clk 0:00:58]}  gxf5 {[%clk 0:01:11]} 19. exf5 {[%clk 0:00:59]}  Rg8 {[%clk 0:01:11]} 20. Kh1 {[%clk 0:00:43]}  Qe8 {[%clk 0:00:53]} 21. Nd5 {[%clk 0:00:36]}  Qh5 {[%clk 0:00:43]} 22. Ng5 {[%clk 0:00:15]}  Rdf8 {[%clk 0:00:18]} 23. f4 {[%clk 0:00:15]}  Bh6 {[%clk 0:00:16]} 24. Ne6 {[%clk 0:00:13]}  Ng4 {[%clk 0:00:14]} 25. h3 {[%clk 0:00:13]}  Rxf5 {[%clk 0:00:14]} 26. Ne7 {[%clk 0:00:05]}  Nf2+ {[%clk 0:00:11]} 27. Qxf2 {[%clk 0:00:05]}  Qxh3+ {[%clk 0:00:11]} 28. Kg1 {[%clk 0:00:02]}  Rxg2+ {[%clk 0:00:12]} 0-1


[Site "https://www.chess.com"]

[Event "Titled Tuesday Blitz July 4 Late 2023"]
[White "Kantor, Gergely"]
[Black "ArtemDyachuk"]
[WhiteFideId "751499"]
[WhiteElo "2834"]
[BlackElo "2556"]
[Result "1-0"]
[Round "3"]
[TimeControl "180+2"]
[Date "2023.07.04"]
[WhiteClock "0:00:06"]
[BlackClock "0:00:00"]
[Board "32"]

1. e4 {[%clk 0:03:00]}  c6 {[%clk 0:02:59]} 2. Nf3 {[%clk 0:02:58]}  d5 {[%clk 0:02:57]} 3. d3 {[%clk 0:02:59]}  g6 {[%clk 0:02:55]} 4. Qe2 {[%clk 0:02:55]}  Bg7 {[%clk 0:02:55]} 5. g3 {[%clk 0:02:56]}  Nf6 {[%clk 0:02:53]} 6. e5 {[%clk 0:02:53]}  Nfd7 {[%clk 0:02:52]} 7. e6 {[%clk 0:02:52]}  fxe6 {[%clk 0:02:45]} 8. Ng5 {[%clk 0:02:52]}  Nf8 {[%clk 0:02:42]} 9. Bh3 {[%clk 0:02:49]}  e5 {[%clk 0:02:39]} 10. Bxc8 {[%clk 0:02:43]}  Qxc8 {[%clk 0:02:39]} 11. O-O {[%clk 0:02:41]}  Nbd7 {[%clk 0:02:35]} 12. f4 {[%clk 0:02:35]}  h6 {[%clk 0:02:25]} 13. Nf3 {[%clk 0:02:29]}  exf4 {[%clk 0:02:24]} 14. Re1 {[%clk 0:02:28]}  e6 {[%clk 0:02:18]} 15. Bxf4 {[%clk 0:02:15]}  Bxb2 {[%clk 0:02:14]} 16. Nbd2 {[%clk 0:02:15]}  Bxa1 {[%clk 0:01:52]} 17. Rxa1 {[%clk 0:02:14]}  Qd8 {[%clk 0:01:53]} 18. Rb1 {[%clk 0:02:14]}  b6 {[%clk 0:01:39]} 19. Nd4 {[%clk 0:02:10]}  Qe7 {[%clk 0:01:35]} 20. Kg2 {[%clk 0:01:45]}  g5 {[%clk 0:01:23]} 21. Nxc6 {[%clk 0:01:36]}  Qc5 {[%clk 0:01:14]} 22. Be5 {[%clk 0:01:36]}  Nxe5 {[%clk 0:01:03]} 23. Nxe5 {[%clk 0:01:28]}  Qc7 {[%clk 0:00:52]} 24. Qh5+ {[%clk 0:01:24]}  Ke7 {[%clk 0:00:43]} 25. Re1 {[%clk 0:01:01]}  Rh7 {[%clk 0:00:39]} 26. c4 {[%clk 0:00:39]}  Qb7 {[%clk 0:00:28]} 27. Ndf3 {[%clk 0:00:35]}  Rd8 {[%clk 0:00:23]} 28. h4 {[%clk 0:00:27]}  dxc4 {[%clk 0:00:23]} 29. hxg5 {[%clk 0:00:24]}  cxd3 {[%clk 0:00:18]} 30. g6 {[%clk 0:00:25]}  d2 {[%clk 0:00:16]} 31. Rd1 {[%clk 0:00:25]}  Rg7 {[%clk 0:00:12]} 32. Qxh6 {[%clk 0:00:23]}  Rg8 {[%clk 0:00:12]} 33. g7 {[%clk 0:00:21]}  Nd7 {[%clk 0:00:09]} 34. Qg5+ {[%clk 0:00:20]}  Kd6 {[%clk 0:00:08]} 35. Rxd2+ {[%clk 0:00:20]}  Kc7 {[%clk 0:00:08]} 36. Qe7 {[%clk 0:00:21]}  Kb8 {[%clk 0:00:01]} 37. Nxd7+ {[%clk 0:00:20]}  Ka8 {[%clk 0:00:01]} 38. Kf2 {[%clk 0:00:12]}  a6 {[%clk 0:00:01]} 39. Ke2 {[%clk 0:00:12]}  Ka7 {[%clk 0:00:01]} 40. Nfe5 {[%clk 0:00:12]}  Qe4+ {[%clk 0:00:02]} 41. Kd1 {[%clk 0:00:11]}  Qb1+ {[%clk 0:00:01]} 42. Ke2 {[%clk 0:00:12]}  Qe4+ {[%clk 0:00:02]} 43. Kf2 {[%clk 0:00:13]}  Qf5+ {[%clk 0:00:03]} 44. Kg2 {[%clk 0:00:13]}  Qe4+ {[%clk 0:00:03]} 45. Kh2 {[%clk 0:00:14]}  Rh8+ {[%clk 0:00:03]} 46. gxh8=Q {[%clk 0:00:13]}  Rxh8+ {[%clk 0:00:03]} 47. Kg1 {[%clk 0:00:13]}  Qe1+ {[%clk 0:00:03]} 48. Kg2 {[%clk 0:00:13]}  Qxd2+ {[%clk 0:00:04]} 49. Kf3 {[%clk 0:00:14]}  Qd5+ {[%clk 0:00:03]} 50. Kf4 {[%clk 0:00:13]}  Qd4+ {[%clk 0:00:04]} 51. Kg5 {[%clk 0:00:14]}  Qe3+ {[%clk 0:00:04]} 52. Kf6 {[%clk 0:00:14]}  Qh6+ {[%clk 0:00:04]} 53. Ng6 {[%clk 0:00:14]}  Rh7 {[%clk 0:00:04]} 54. Qd8 {[%clk 0:00:12]}  Qg7+ {[%clk 0:00:04]} 55. Kg5 {[%clk 0:00:11]}  Qxd7 {[%clk 0:00:03]} 56. Qf8 {[%clk 0:00:10]}  Rf7 {[%clk 0:00:03]} 57. Qg8 {[%clk 0:00:09]}  Rf5+ {[%clk 0:00:03]} 58. Kh6 {[%clk 0:00:09]}  Rf6 {[%clk 0:00:02]} 59. g4 {[%clk 0:00:09]}  e5 {[%clk 0:00:02]} 60. g5 {[%clk 0:00:09]}  Qh3+ {[%clk 0:00:02]} 61. Kg7 {[%clk 0:00:09]}  Rc6 {[%clk 0:00:02]} 62. Qf7+ {[%clk 0:00:09]}  Kb8 {[%clk 0:00:03]} 63. Qe8+ {[%clk 0:00:09]}  Rc8 {[%clk 0:00:03]} 64. Qxe5+ {[%clk 0:00:09]}  Rc7+ {[%clk 0:00:03]} 65. Ne7 {[%clk 0:00:10]}  Kb7 {[%clk 0:00:02]} 66. Qd5+ {[%clk 0:00:10]}  Kb8 {[%clk 0:00:03]} 67. Qd8+ {[%clk 0:00:10]}  Kb7 {[%clk 0:00:03]} 68. g6 {[%clk 0:00:10]}  Qe6 {[%clk 0:00:03]} 69. Kf8 {[%clk 0:00:09]}  Qf6+ {[%clk 0:00:03]} 70. Ke8 {[%clk 0:00:09]}  Qe6 {[%clk 0:00:02]} 71. g7 {[%clk 0:00:08]}  Qe5 {[%clk 0:00:01]} 72. g8=Q {[%clk 0:00:08]}  Qh5+ {[%clk 0:00:01]} 73. Qg6 {[%clk 0:00:08]}  Qh8+ {[%clk 0:00:01]} 74. Ng8 {[%clk 0:00:07]}  Qe5+ {[%clk 0:00:01]} 75. Kf8 {[%clk 0:00:06]}  Qf4+ {[%clk 0:00:01]} 76. Qgf6 {[%clk 0:00:06]}  Qb4+ {[%clk 0:00:02]} 77. Ne7 {[%clk 0:00:06]}  Qc4 {[%clk 0:00:00]} 78. Qf3+ {[%clk 0:00:06]} 1-0


[Site "https://www.chess.com"]